bitfinex-derivatives/quotes_ETHF0:USTF0_20251028
["timestamp","ask_amount","ask_price","bid_price","bid_amount"]
[1761613930337,0.7782,4130.0,4129.9,1.21965]
[1761613930838,0.9138,4130.0,4129.9,1.21965]
[1761613931040,0.9138,4130.0,4129.9,0.2275]
[1761613932340,0.3426,4129.9,4129.6,0.5694]
[1761613932644,0.7782,4129.7,4129.6,1.21968]
[1761613933538,0.5661,4130.0,4129.9,1.21965]
[1761613933744,0.4356,4130.4,4130.1,0.3419]
[1761613934041,0.7782,4130.2,4130.1,0.7838]
[1761613934449,0.7782,4130.2,4130.1,0.5694]
[1761613934641,0.4356,4130.2,4129.7,0.7838]
[1761613934941,0.7782,4129.8,4129.7,0.7838]
[1761613935139,0.3426,4130.4,4129.9,0.43585]
[1761613935339,0.7782,4130.4,4130.3,0.5694]
[1761613935941,0.7782,4130.4,4130.0,0.43584]
[1761613936148,0.7782,4130.2,4130.1,0.5694]
[1761613937445,0.3426,4130.1,4129.6,0.3419]
[1761613937647,0.2121,4129.7,4129.6,1.21968]
[1761613937847,0.1356,4130.5,4129.9,0.7838]
[1761613937848,0.5547,4130.0,4129.9,0.7838]
[1761613938047,0.7782,4130.0,4129.9,0.7838]
[1761613938247,0.7782,4130.0,4129.9,0.5694]
[1761613938446,0.5547,4129.7,4129.6,0.3419]
[1761613938751,0.7782,4129.7,4129.6,0.5694]
[1761613940046,0.7782,4129.5,4129.4,1.2197]
[1761613940253,0.4356,4129.9,4129.8,0.7838]
[1761613940948,0.4356,4129.9,4129.8,1.21966]
[1761613941754,0.4356,4129.9,4129.8,0.7838]
[1761613943353,0.7782,4129.9,4129.8,0.7838]
[1761613944556,0.7782,4129.9,4129.8,0.5694]
[1761613944756,0.7782,4129.9,4129.8,0.3419]
[1761613947357,0.4356,4129.9,4129.8,0.7838]
[1761613948155,0.4356,4130.2,4130.1,0.7838]
[1761613948361,0.7782,4130.2,4130.1,0.7838]
[1761613952958,0.2121,4130.2,4130.1,0.7838]
[1761613953456,0.5661,4130.5,4130.1,1.21963]
[1761613953764,0.5661,4130.5,4130.4,0.7838]
[1761613953765,0.4356,4130.5,4130.4,0.7838]
[1761613954164,0.00270649,4130.7,4130.6,0.7758]
[1761613954560,0.1408,4131.5,4130.7,0.3405]
[1761613955162,0.1408,4130.8,4130.7,0.7758]
[1761613955465,0.14261778,4130.8,4130.7,0.7758]
[1761613955964,0.28341778,4130.8,4130.7,0.3405]
[1761613956163,0.42421778,4130.8,4130.7,0.3405]
[1761613956465,0.28341778,4130.8,4130.7,0.5663]
[1761613956965,0.28341778,4130.8,4130.7,0.7758]
[1761613958061,0.28341778,4130.8,4130.7,0.3405]
[1761613958262,0.42421778,4130.8,4130.7,0.3405]
[1761613958765,0.2816,4130.2,4130.1,0.5663]
[1761613959164,0.4224,4130.2,4130.1,0.5663]
[1761613959961,0.2816,4130.2,4130.1,0.5663]
[1761613960367,0.4224,4130.2,4130.1,0.3405]
[1761613961864,0.4224,4130.2,4129.5,0.56268]
[1761613962061,0.2816,4130.0,4129.9,0.5663]
[1761613962265,0.2816,4130.0,4129.9,0.7758]
[1761613963460,0.1408,4130.2,4130.1,0.7758]
[1761613964266,0.2816,4130.2,4130.1,0.7758]
[1761613966869,0.1408,4130.1,4129.6,0.3405]
[1761613967175,0.2816,4129.7,4129.6,0.5663]
[1761613967467,0.2816,4129.7,4129.6,0.7758]
[1761613967672,0.4224,4129.7,4129.6,0.7758]
[1761613967869,0.2816,4129.7,4129.6,0.7758]
[1761613968671,0.2816,4129.4,4129.3,0.5663]
[1761613968874,0.2816,4129.4,4129.3,0.7758]
[1761613971778,0.1408,4129.4,4129.3,0.7758]
[1761613971978,0.1408,4130.0,4129.4,0.3405]
[1761613973178,0.1408,4129.5,4129.4,0.7758]
[1761613975776,0.2816,4129.5,4129.4,0.7758]
[1761613981382,0.2816,4129.5,4129.0,0.46805]
[1761613981383,0.1408,4130.2,4130.1,0.55]
[1761613981585,0.1408,4130.3,4130.2,0.7758]
[1761613981885,0.2816,4130.3,4130.2,0.7758]
[1761613985991,0.4224,4130.3,4130.2,0.5663]
[1761613986283,0.1408,4129.8,4129.6,0.3217]
[1761613986482,0.2816,4129.7,4129.6,0.552]
[1761613986785,0.2816,4129.7,4129.6,0.7698]
[1761613987286,0.4224,4129.7,4129.6,0.552]
[1761613987480,0.2816,4129.7,4129.6,0.552]
[1761613988487,0.2816,4129.7,4129.6,0.7698]
[1761613989279,0.2816,4130.1,4130.0,0.5828]
[1761613989483,0.2816,4130.1,4130.0,0.9045]
[1761613991086,0.2816,4130.7,4130.6,0.552]
[1761613991287,0.2816,4130.7,4130.6,0.7698]
[1761613991683,0.00181778,4130.8,4130.6,0.4481]
[1761613991880,0.14261778,4130.8,4130.7,0.7698]
[1761613992886,0.28341778,4130.8,4130.7,0.7698]
[1761613995288,0.42421778,4130.8,4130.7,0.7698]
[1761613995490,0.42421778,4130.8,4130.7,0.3217]
[1761613995788,0.1408,4130.6,4130.5,0.4564]
[1761613995993,0.4224,4130.6,4130.5,0.3217]
[1761613996194,0.00181778,4130.8,4130.1,0.2303]
[1761613996195,0.2816,4130.2,4130.1,0.2303]
[1761613996694,0.2816,4129.8,4129.7,0.552]
[1761613998194,0.2816,4129.8,4129.7,0.7698]
[1761613998395,0.1408,4130.5,4129.8,0.3217]
[1761613998591,0.2816,4130.1,4130.0,0.5828]
[1761613999093,0.2816,4130.1,4130.0,0.9045]
[1761614000296,0.1408,4130.1,4130.0,0.9045]
[1761614000490,0.1408,4130.7,4130.1,0.3217]
[1761614000891,0.2816,4130.7,4130.6,0.7698]
[1761614001385,0.1408,4130.7,4130.6,0.7698]
[1761614001690,0.00181778,4130.8,4130.7,0.7698]
[1761614002194,0.14261778,4130.8,4130.7,0.7698]
[1761614003596,0.28341778,4130.8,4130.7,0.7698]
[1761614003895,0.42421778,4130.8,4130.7,0.552]
[1761614004290,0.28341778,4130.8,4130.7,0.552]
[1761614004492,0.28341778,4130.8,4130.7,0.7698]
[1761614005194,0.14261778,4130.8,4130.7,0.7698]
[1761614005399,0.00181778,4130.8,4130.7,0.7698]
[1761614005594,0.14261778,4130.8,4130.7,0.7698]
[1761614005899,0.28341778,4130.8,4130.7,0.7698]
[1761614007698,0.28341778,4130.8,4130.7,0.552]
[1761614008101,0.28341778,4130.8,4130.7,0.7698]
[1761614008997,0.28341778,4130.8,4129.5,0.1265]
[1761614009198,0.2105,4130.0,4129.5,0.5746]
[1761614010404,0.4219,4130.0,4129.5,0.5746]
[1761614011000,0.7564,4130.0,4129.6,0.3217]
[1761614011208,0.7564,4130.0,4129.9,0.7698]
[1761614011402,0.2105,4130.4,4130.0,0.3217]
[1761614011604,0.54681778,4130.8,4130.3,0.3217]
[1761614011906,0.42371778,4130.8,4130.7,0.552]
[1761614012108,0.42371778,4130.8,4130.1,0.3217]
[1761614012299,0.3345,4130.7,4130.1,0.3217]
[1761614012609,0.7564,4130.7,4130.6,0.2303]
[1761614012802,0.4219,4130.7,4130.6,0.7698]
[1761614012998,0.21231778,4130.8,4130.7,0.7698]
[1761614013607,0.42371778,4130.8,4130.7,0.7698]
[1761614014410,0.74971778,4130.8,4130.7,0.552]
[1761614015307,0.326,4130.7,4130.0,0.1347]
[1761614015512,0.2237,4130.2,4130.1,0.7408]
[1761614016608,0.77,4130.6,4130.2,0.317]
[1761614016916,0.77,4130.6,4130.5,0.5501]
[1761614017107,0.77,4130.6,4130.5,0.8671]
[1761614020014,0.77,4130.6,4130.5,0.7408]
[1761614020207,0.00181778,4130.8,4130.5,0.8671]
[1761614020408,0.22551778,4130.8,4130.7,0.7408]
[1761614021012,0.44581778,4130.8,4130.7,0.7408]
[1761614021313,0.00181778,4130.8,4130.7,0.7408]
[1761614021811,0.22551778,4130.8,4130.7,0.7408]
[1761614022014,0.00181778,4130.8,4130.7,0.7408]
[1761614023909,0.00181778,4130.8,4130.7,1.17657]
[1761614025013,0.00181778,4130.8,4130.7,0.7408]
[1761614041229,0.22551778,4130.8,4130.7,0.7408]
[1761614041830,0.00181778,4130.8,4130.7,0.7408]
[1761614044426,0.77671778,4130.8,4130.7,0.7408]
[1761614044632,0.00181778,4130.8,4130.7,0.7408]
[1761614045134,0.22021778,4130.8,4130.7,0.7408]
[1761614047232,0.43501778,4130.8,4130.7,0.7408]
[1761614047432,0.22021778,4130.8,4130.7,0.7408]
[1761614047734,0.00181778,4130.8,4130.7,0.7408]
[1761614047927,0.21061778,4130.8,4130.7,0.7408]
[1761614049438,0.00181778,4130.8,4130.7,0.7408]
[1761614050940,0.21061778,4130.8,4130.7,0.7408]
[1761614051733,0.42541778,4130.8,4130.3,0.3233]
[1761614051933,0.4236,4130.4,4130.3,0.754]
[1761614052130,0.00181778,4130.8,4130.7,0.754]
[1761614052537,0.325,4130.7,4130.1,0.3233]
[1761614052738,0.2088,4130.2,4130.1,0.754]
[1761614052932,0.2088,4130.5,4130.2,0.3233]
[1761614053138,0.2088,4130.5,4130.4,0.754]
[1761614054137,0.4236,4130.5,4130.4,0.754]
[1761614054336,0.7486,4130.5,4130.4,0.754]
[1761614054941,0.7486,4130.5,4130.4,0.5329]
[1761614055340,0.7486,4130.5,4130.4,0.754]
[1761614056841,0.7486,4130.5,4130.4,0.3233]
[1761614057442,0.7486,4130.5,4130.4,0.5329]
[1761614063146,0.4236,4130.5,4130.4,0.754]
[1761614063549,0.7486,4130.5,4130.4,0.754]
[1761614064545,0.4236,4130.2,4130.1,0.3233]
[1761614064756,0.7486,4130.2,4130.1,0.5329]
[1761614065348,0.7486,4130.2,4130.1,0.754]
[1761614066052,0.4236,4130.2,4130.1,0.754]
[1761614066749,0.7486,4130.2,4130.1,0.754]
[1761614068746,0.4236,4130.2,4130.1,0.754]
[1761614069451,0.325,4130.4,4130.1,0.754]
[1761614069650,0.5338,4130.7,4130.2,0.3233]
[1761614070346,0.2088,4130.7,4130.6,0.2096]
[1761614070652,0.4236,4130.7,4130.6,0.754]
[1761614071052,0.7486,4130.7,4130.6,0.754]
[1761614072346,0.7486,4130.7,4130.6,0.5329]
[1761614072548,0.1281,4130.5,4130.1,0.3233]
[1761614072754,0.4236,4130.2,4130.1,0.3233]
[1761614072945,0.7486,4130.2,4130.1,0.5329]
[1761614073152,0.7486,4130.2,4130.1,0.754]
[1761614073350,0.2088,4130.2,4130.1,0.754]
[1761614073854,0.7486,4130.2,4130.1,0.754]
[1761614076658,0.4236,4130.2,4130.1,0.754]
[1761614077460,0.7593,4130.2,4130.1,0.754]
[1761614078957,0.4236,4130.2,4130.1,0.754]
[1761614079159,0.7593,4130.2,4130.1,0.7594]
[1761614079663,0.4236,4130.2,4130.1,0.7594]
[1761614080964,0.7593,4130.2,4130.1,0.7594]
[1761614081967,0.7593,4130.2,4129.5,0.1265]
[1761614082265,0.5458,4130.0,4129.9,0.761]
[1761614083167,0.7712,4130.0,4129.9,0.761]
[1761614084069,0.7712,4129.7,4129.6,0.4361]
[1761614084268,0.2101,4129.7,4129.6,0.4361]
[1761614084569,0.2101,4129.7,4129.6,0.761]
[1761614089171,0.1281,4130.5,4129.6,0.4361]
[1761614089476,0.4355,4130.4,4130.3,0.549]
[1761614089876,0.7712,4130.4,4130.3,0.3249]
[1761614092371,0.4355,4130.4,4130.1,0.3249]
[1761614092574,0.3357,4130.3,4130.1,0.3249]
[1761614092778,0.7712,4130.2,4130.1,0.549]
[1761614094682,0.7712,4130.2,4130.1,0.761]
[1761614094986,0.4355,4130.2,4130.1,0.761]
[1761614096180,0.7712,4130.2,4130.1,0.761]
[1761614100282,0.7712,4130.2,4130.0,0.1359]
[1761614100283,0.21191778,4130.8,4130.7,0.761]
[1761614101783,0.54761778,4130.8,4130.7,0.761]
[1761614102388,0.43731778,4130.8,4130.7,0.761]
[1761614102592,0.21191778,4130.8,4130.7,0.761]
[1761614102790,0.77301778,4130.8,4130.7,0.761]
[1761614102990,0.43731778,4130.8,4130.7,0.761]
[1761614103689,0.77301778,4130.8,4130.7,0.761]
[1761614103887,0.00181778,4130.8,4130.7,0.761]
[1761614107293,0.20931778,4130.8,4130.7,0.761]
[1761614107490,0.00181778,4130.8,4130.7,0.761]
[1761614109491,0.18897647,4132.0,4131.9,0.738]
[1761614109694,0.5506,4132.4,4132.0,0.3116]
[1761614109896,0.39938572,4132.4,4132.3,0.738]
[1761614110496,0.40112255,4132.4,4132.3,0.74032597]
[1761614112497,0.97382255,4132.4,4132.3,0.00232597]
[1761614112997,0.97382255,4132.4,4132.3,0.52262597]
[1761614113193,0.97382255,4132.4,4132.3,0.31392597]
[1761614113393,0.97382255,4132.4,4132.3,0.52262597]
[1761614114194,0.97382255,4132.4,4132.3,0.74032597]
[1761614114997,0.63072255,4132.4,4132.3,0.74032597]
[1761614116100,0.97382255,4132.4,4132.3,0.74032597]
[1761614117801,0.63072255,4132.4,4132.3,0.74032597]
[1761614118503,0.19362255,4132.4,4132.3,0.74032597]
[1761614118698,0.022,4132.8,4132.5,0.1358]
[1761614118904,0.022,4132.8,4132.7,0.738]
[1761614119804,0.02389901,4132.8,4132.7,0.738]
[1761614120406,0.5506,4134.0,4132.8,0.3116]
[1761614120606,0.2075,4133.7,4133.6,0.738]
[1761614120800,0.4371,4133.7,4133.6,0.738]
[1761614121509,0.78250659,4133.7,4133.6,0.738]
[1761614122610,0.97319726,4133.7,4133.6,0.738]
[1761614123109,0.3431,4133.6,4133.0,0.38907904]
[1761614123302,0.7802,4133.1,4133.0,0.07747904]
[1761614123501,0.7802,4132.5,4132.4,0.738]
[1761614124005,0.3431,4132.8,4132.4,0.738]
[1761614124309,0.7802,4132.8,4132.7,0.738]
[1761614124708,0.5506,4132.8,4132.7,0.738]
[1761614124912,0.3431,4133.3,4132.8,0.3116]
[1761614125212,0.4371,4133.3,4133.2,0.5203]
[1761614125613,0.7802,4133.3,4133.2,0.5203]
[1761614126208,0.7802,4133.3,4133.2,0.2087]
[1761614126813,0.7802,4133.3,4132.9,0.3116]
[1761614127113,0.3431,4133.2,4132.9,0.5203]
[1761614127315,0.7802,4133.0,4132.9,0.5203]
[1761614127812,0.7802,4133.0,4132.9,0.738]
[1761614128013,0.3431,4133.3,4132.9,0.738]
[1761614128207,0.5506,4133.2,4133.1,0.3116]
[1761614128408,0.5506,4133.2,4133.1,0.738]
[1761614129015,0.2075,4133.2,4133.1,0.738]
[1761614129211,0.5506,4133.5,4133.4,0.4264]
[1761614129411,0.7802,4133.5,4133.4,0.738]
[1761614129914,0.3431,4133.6,4133.5,0.3116]
[1761614130109,0.4694,4133.5,4133.1,0.738]
[1761614130310,0.7802,4133.2,4133.1,0.4264]
[1761614130714,0.2075,4133.2,4133.1,0.738]
[1761614130911,0.1263,4133.5,4133.1,0.738]
[1761614130912,0.5506,4133.5,4133.2,0.3116]
[1761614132014,0.5506,4133.5,4133.4,0.738]
[1761614132210,0.5506,4133.5,4132.5,0.1358]
[1761614132211,0.3431,4133.4,4132.6,0.3116]
[1761614132415,0.5506,4132.7,4132.6,0.738]
[1761614132715,0.7802,4132.4,4132.3,0.21102597]
[1761614132913,0.7802,4132.4,4132.3,0.74032597]
[1761614134515,0.7802,4132.4,4132.3,0.00232597]
[1761614134912,0.7802,4132.4,4132.3,0.21912597]
[1761614135209,0.1263,4132.5,4132.3,0.21912597]
[1761614135210,0.5603,4132.7,4132.3,0.43102597]
[1761614135414,0.3377,4132.6,4132.4,0.3418]
[1761614135614,0.7858,4132.6,4132.5,0.7705]
[1761614136117,0.7858,4132.4,4132.3,0.56092597]
[1761614136318,0.7858,4132.4,4132.3,0.21912597]
[1761614136518,0.7858,4132.4,4132.3,0.00232597]
[1761614138216,0.7858,4132.4,4132.3,0.21912597]
[1761614138422,0.7858,4132.4,4132.3,0.56092597]
[1761614138822,0.7858,4132.4,4132.3,0.77282597]
[1761614139820,0.7858,4132.4,4132.3,0.21912597]
[1761614140524,0.7858,4132.4,4132.3,0.56092597]
[1761614142021,0.7858,4132.4,4132.3,0.00232597]
[1761614142216,0.7858,4132.4,4132.3,0.56092597]
[1761614142825,0.7858,4132.4,4132.3,0.21912597]
[1761614143523,0.7858,4132.4,4132.3,0.00232597]
[1761614144416,0.7858,4132.4,4132.3,0.21912597]
[1761614144620,0.7858,4132.4,4132.3,0.56092597]
[1761614146625,0.7858,4132.4,4132.3,0.00232597]
[1761614146827,0.7858,4132.4,4132.3,0.21912597]
[1761614147620,0.3377,4132.6,4132.5,0.2168]
[1761614147825,0.5603,4132.6,4132.5,0.7705]
[1761614148630,0.5603,4132.6,4132.5,0.9009]
[1761614149832,0.2226,4132.6,4132.5,0.9009]
[1761614151033,0.5603,4132.6,4132.5,0.9009]
[1761614151533,0.7858,4132.6,4132.5,0.7705]
[1761614152128,0.2226,4132.4,4132.3,0.00232597]
[1761614152333,0.7858,4132.4,4132.3,0.00232597]
[1761614158039,0.7858,4132.4,4132.3,0.21912597]
[1761614158338,0.7858,4132.4,4132.3,0.56092597]
[1761614159338,0.7858,4132.4,4132.3,0.00232597]
[1761614161834,0.5835,4131.5,4131.1,0.5586]
[1761614162037,0.7858,4131.2,4131.1,0.7705]
[1761614162637,0.98253047,4131.2,4131.1,0.7705]
[1761614162838,0.98253047,4131.2,4131.1,0.77249064]
[1761614163740,0.98253047,4131.2,4131.1,0.00199064]
[1761614164137,0.98253047,4131.2,4131.1,0.22569064]
[1761614165943,0.19673047,4131.2,4131.1,0.76599064]
[1761614166137,0.4349,4131.6,4131.2,0.3178]
[1761614166341,0.3316,4131.5,4131.2,0.3178]
[1761614166538,0.7665,4131.5,4131.4,0.7507]
[1761614166842,0.8973,4131.5,4131.1,0.31979064]
[1761614167042,0.7665,4131.2,4131.1,0.75269064]
[1761614167937,0.52310363,4131.2,4131.1,0.75269064]
[1761614168140,0.5494,4131.8,4131.7,0.7507]
[1761614168339,0.7665,4131.8,4131.7,0.7507]
[1761614168842,0.96083772,4131.8,4131.7,0.7507]
[1761614169743,0.8973,4131.5,4131.4,0.7507]
[1761614169949,2.63526561,4131.5,4131.4,0.7507]
[1761614170339,2.63526561,4131.5,4131.4,0.4329]
[1761614171048,2.63526561,4131.5,4131.4,0.7507]
[1761614172047,2.63526561,4131.5,4131.4,0.4329]
[1761614173049,0.7665,4131.2,4131.1,0.53699064]
[1761614173248,2.50428061,4131.2,4131.1,0.75269064]
[1761614177754,0.7665,4131.2,4131.1,0.75269064]
[1761614178952,0.7665,4131.2,4131.1,0.43489064]
[1761614179255,0.7665,4131.2,4131.1,0.75269064]
[1761614179755,0.7665,4131.2,4131.1,0.43489064]
[1761614179949,0.7665,4131.2,4131.1,0.75269064]
[1761614180648,0.5494,4131.2,4131.1,0.75269064]
[1761614180850,0.2178,4131.2,4131.1,0.75269064]
[1761614182256,2.7219561,4131.5,4131.2,0.3178]
[1761614182854,2.7219561,4131.5,4131.4,0.7507]
[1761614183256,0.5494,4131.5,4131.4,0.7507]
[1761614184959,0.7665,4131.5,4131.4,0.7507]
[1761614185157,0.8973,4131.5,4131.4,0.7507]
[1761614186959,0.8973,4131.5,4131.1,0.21919064]
[1761614186960,0.7665,4131.2,4131.1,0.21919064]
[1761614187356,0.7665,4131.2,4131.1,0.75269064]
[1761614188763,0.7665,4131.2,4131.1,0.00199064]
[1761614189259,0.7665,4131.2,4131.1,0.21919064]
[1761614190166,0.7665,4131.4,4131.3,0.7507]
[1761614191068,1.73880108,4131.6,4131.5,0.1332]
[1761614191262,0.87111681,4131.8,4131.7,0.7507]
[1761614191463,2.1725561,4132.0,4131.9,0.7507]
[1761614191863,2.1725561,4132.0,4131.9,8.7507]
[1761614192969,1.85153348,4132.0,4131.9,0.7507]
[1761614195772,3.04157855,4132.4,4132.0,0.306]
[1761614195965,0.87111681,4132.9,4132.7,0.306]
[1761614196166,0.19241418,4133.0,4132.9,0.306]
[1761614196366,4.34511221,4133.1,4133.0,0.306]
[1761614196970,4.34511221,4133.1,4133.0,0.7317]
[1761614197366,4.68711221,4133.1,4133.0,0.7317]
[1761614198471,4.34511221,4133.1,4133.0,0.7317]
[1761614199074,4.34511221,4133.1,4133.0,0.7983]
[1761614200667,0.34430659,4133.7,4133.1,0.74151]
[1761614200876,0.00230659,4133.7,4133.6,0.7317]
[1761614206672,0.78510659,4133.7,4133.6,0.4257]
[1761614207376,0.78510659,4133.7,4133.6,0.7317]
[1761614207679,0.78510659,4133.7,4133.6,0.4257]
[1761614208180,0.78510659,4133.7,4133.6,0.2098]
[1761614210574,0.4408,4133.2,4133.1,0.4257]
[1761614210778,0.342,4133.1,4132.5,0.306]
[1761614210975,0.9198,4133.0,4132.9,0.2098]
[1761614211177,0.342,4133.4,4133.3,0.5219]
[1761614211382,0.342,4133.4,4133.3,0.7317]
[1761614213176,0.00230659,4133.7,4133.4,0.306]
[1761614213177,0.34430659,4133.7,4133.4,0.306]
[1761614213576,0.56620659,4133.7,4133.6,0.4257]
[1761614213874,0.56620659,4133.7,4133.6,0.7317]
[1761614215584,0.00230659,4133.7,4133.6,0.7317]
[1761614222192,0.78510659,4133.7,4133.6,0.4257]
[1761614222883,0.78510659,4133.7,4133.6,0.7317]
[1761614223391,0.78510659,4133.7,4133.6,0.4257]
[1761614223894,0.44310659,4133.7,4133.0,0.306]
[1761614224089,0.7624,4133.6,4133.5,0.2098]
[1761614224691,0.342,4133.6,4133.5,0.7282]
[1761614224887,0.5531,4133.6,4133.5,0.7282]
[1761614225394,0.7624,4133.6,4133.5,0.422]
[1761614225891,0.7624,4133.6,4133.5,0.2098]
[1761614226095,0.342,4133.6,4133.5,0.7282]
[1761614226595,0.5593,4133.6,4133.5,0.7282]
[1761614227195,0.7742,4133.6,4133.5,0.7282]
[1761614228097,0.4322,4133.2,4133.1,0.428]
[1761614228392,0.771,4133.2,4133.1,0.428]
[1761614228600,0.771,4133.2,4133.1,0.7342]
[1761614228795,0.771,4133.2,4133.1,0.428]
[1761614228994,0.771,4133.2,4133.1,0.2188]
[1761614229295,0.771,4133.2,4133.1,0.428]
[1761614230499,0.3388,4133.2,4133.1,1.38468493]
[1761614230802,0.4322,4133.2,4133.0,0.86928493]
[1761614231095,0.771,4133.1,4133.0,1.07848493]
[1761614231287,0.771,4133.1,4133.0,1.38468493]
[1761614231799,0.771,4132.9,4132.8,0.65048493]
[1761614231996,0.9055,4132.5,4132.4,0.65048493]
[1761614232200,0.771,4132.2,4132.1,0.65048493]
[1761614232399,0.771,4131.8,4131.7,0.86928493]
[1761614232690,0.771,4131.8,4131.7,0.2188]
[1761614233096,0.9055,4131.5,4131.4,0.86928493]
[1761614233292,0.9055,4131.5,4131.4,0.2188]
[1761614233492,0.3388,4131.5,4131.4,0.7342]
[1761614234294,0.5561,4131.5,4131.4,0.7342]
[1761614235692,0.3388,4131.5,4131.4,0.7342]
[1761614237102,0.5561,4131.5,4131.4,0.7342]
[1761614237402,0.6906,4131.5,4131.4,0.7342]
[1761614238695,0.5561,4131.5,4131.4,0.7342]
[1761614238891,0.5561,4131.9,4131.5,0.3062]
[1761614239099,0.4322,4131.9,4131.8,0.2188]
[1761614239299,0.4322,4131.9,4131.8,0.428]
[1761614239500,0.771,4131.9,4131.8,0.428]
[1761614241298,0.3388,4132.2,4132.1,0.428]
[1761614241499,0.3388,4132.4,4132.2,0.3062]
[1761614241700,0.5561,4132.4,4132.3,0.7342]
[1761614242001,0.771,4132.4,4132.3,0.428]
[1761614242507,0.771,4132.4,4132.3,0.2188]
[1761614242701,0.771,4132.4,4132.0,0.3062]
[1761614242702,0.3388,4132.3,4132.0,0.2188]
[1761614242903,0.4322,4132.1,4132.0,0.2188]
[1761614243101,0.771,4132.1,4132.0,0.2188]
[1761614243907,0.771,4131.7,4131.6,0.7342]
[1761614244307,0.5561,4131.7,4131.6,0.7342]
[1761614247207,0.771,4131.7,4131.6,0.2188]
[1761614248204,0.771,4131.7,4131.6,0.7342]
[1761614248506,0.5561,4131.7,4131.6,0.7342]
[1761614249010,0.771,4131.7,4131.6,0.428]
[1761614250203,0.771,4131.7,4131.6,0.7342]
[1761614250508,0.3388,4131.7,4131.6,0.7342]
[1761614251006,0.5561,4131.7,4131.6,0.7342]
[1761614251810,0.3388,4131.7,4131.6,0.7342]
[1761614252112,0.3388,4131.9,4131.8,0.7342]
[1761614252312,0.5561,4131.9,4131.8,0.7342]
[1761614253006,0.1345,4132.5,4131.8,0.7342]
[1761614253204,0.6906,4132.5,4132.4,0.7342]
[1761614253405,0.6906,4132.5,4132.4,0.428]
[1761614253705,0.9055,4132.5,4132.4,0.428]
[1761614253912,0.5561,4131.9,4131.8,0.7342]
[1761614254211,0.771,4131.9,4131.8,0.428]
[1761614254412,0.771,4131.9,4131.8,0.7344]
[1761614254816,0.771,4131.9,4131.8,0.428]
[1761614255010,0.771,4131.9,4131.8,0.7344]
[1761614255215,0.5561,4131.9,4131.8,0.7344]
[1761614255416,0.5561,4131.9,4131.8,1.44369463]
[1761614255914,0.7826,4131.9,4131.8,0.70929463]
[1761614256215,0.7826,4131.9,4131.8,1.13759463]
[1761614256404,0.7826,4131.9,4131.8,1.44399463]
[1761614256916,0.3388,4131.9,4131.8,1.44399463]
[1761614257214,0.7752,4132.4,4132.3,0.2132]
[1761614257714,0.7752,4132.4,4132.3,0.4283]
[1761614258614,0.7752,4132.4,4132.3,0.7347]
[1761614259718,0.5487,4132.4,4132.3,0.7347]
[1761614260212,0.87111681,4133.0,4132.8,0.3064]
[1761614260417,1.00561681,4133.5,4133.3,0.4283]
[1761614260607,1.00561681,4133.5,4133.4,0.7347]
[1761614260608,1.32391681,4133.5,4133.4,0.7347]
[1761614260807,0.3183,4133.5,4133.4,0.7347]
[1761614261611,0.32060659,4133.7,4133.6,0.7347]
[1761614262021,0.55100659,4133.7,4133.6,0.7347]
[1761614263324,0.77750659,4133.7,4133.6,0.4283]
[1761614263616,0.77750659,4133.7,4133.6,0.7347]
[1761614265206,0.77750659,4133.7,4133.6,0.4283]
[1761614266117,0.00230659,4133.7,4133.6,1.17016]
[1761614266522,0.55100659,4133.7,4133.6,0.7347]
[1761614266712,6.95217955,4134.5,4133.7,0.43545]
[1761614267021,6.95217955,4134.5,4134.0,0.4283]
[1761614267022,0.7752,4134.1,4134.0,0.4283]
[1761614267916,0.77798863,4134.1,4134.0,0.43126697]
[1761614269015,0.32108863,4134.1,4134.0,0.73766697]
[1761614269220,0.55148863,4134.1,4134.0,0.73766697]
[1761614269824,0.00278863,4134.1,4134.0,0.73766697]
[1761614271416,0.00278863,4134.1,4134.0,0.80686697]
[1761614273124,0.00278863,4134.1,4134.0,1.43317652]
[1761614273424,0.77798863,4134.1,4134.0,1.05757652]
[1761614273722,0.00278863,4134.1,4134.0,1.36397652]
[1761614274921,0.32108863,4134.1,4134.0,1.36397652]
[1761614279432,0.77798863,4134.1,4134.0,1.05757652]
[1761614279628,0.77798863,4134.1,4134.0,1.36397652]
[1761614279824,0.77798863,4134.1,4134.0,1.05757652]
[1761614280829,0.77798863,4134.1,4134.0,1.36397652]
[1761614282230,0.77798863,4134.1,4134.0,1.05757652]
[1761614282633,0.77798863,4134.1,4134.0,0.62927652]
[1761614282930,0.77798863,4134.1,4134.0,0.00296697]
[1761614284732,8.77798863,4134.1,4134.0,0.00296697]
[1761614285833,0.77798863,4134.1,4134.0,0.00296697]
[1761614286029,0.77798863,4134.1,4133.2,0.65048493]
[1761614286229,0.77798863,4134.1,4133.0,0.86902244]
[1761614286230,0.7731,4133.4,4132.8,0.65048493]
[1761614286438,0.6907,4133.0,4132.9,1.37484966]
[1761614286833,0.9003,4133.0,4132.9,1.37484966]
[1761614287030,0.9003,4133.0,4132.9,1.06585]
[1761614287236,0.9003,4133.0,4132.9,0.63015]
[1761614287434,0.5635,4133.3,4133.2,0.4357]
[1761614287740,0.5635,4133.3,4133.2,1.37484966]
[1761614287938,0.5635,4133.3,4133.2,1.06364966]
[1761614287939,0.7731,4133.3,4133.2,1.06364966]
[1761614288338,0.7731,4133.3,4133.2,1.9326721]
[1761614288945,0.7731,4133.3,4133.2,1.06364966]
[1761614289335,0.7731,4133.3,4133.2,1.9326721]
[1761614289640,0.7731,4133.3,4133.2,1.06364966]